[Event "*** Titled Tuesday Blitz"]
[Site "Chess.com"]
[Date "2020.12.29"]
[Round "7"]
[White "JustKid"]
[Black "Parhamov"]
[Result "0-1"]
[WhiteElo "2615"]
[BlackElo "2934"]
[TimeControl "180+1"]
[EndTime "11:15:30 PST"]
[Termination "Parhamov won by checkmate"]

1. d4 {[%clk 0:03:00.9]} 1... Nf6 {[%clk 0:02:58.9]} 2. Bf4 {[%clk 0:03:01.4]}
2... e6 {[%clk 0:02:57.9]} 3. e3 {[%clk 0:03:02]} 3... b6 {[%clk 0:02:55.9]} 4.
Nf3 {[%clk 0:03:02.5]} 4... Bb7 {[%clk 0:02:56]} 5. Nbd2 {[%clk 0:03:02.3]} 5...
g6 {[%clk 0:02:55.4]} 6. Be2 {[%clk 0:02:59.2]} 6... Bg7 {[%clk 0:02:55.2]} 7.
h3 {[%clk 0:02:59.1]} 7... O-O {[%clk 0:02:54.9]} 8. O-O {[%clk 0:02:59.7]} 8...
d6 {[%clk 0:02:54.7]} 9. Bh2 {[%clk 0:02:55.9]} 9... Nbd7 {[%clk 0:02:54.8]} 10.
c3 {[%clk 0:02:54.4]} 10... h6 {[%clk 0:02:53.9]} 11. a4 {[%clk 0:02:54.8]}
11... a5 {[%clk 0:02:53.4]} 12. Qb3 {[%clk 0:02:55.2]} 12... Ne4 {[%clk
0:02:52]} 13. Nc4 {[%clk 0:02:48.8]} 13... Re8 {[%clk 0:02:51.1]} 14. Rfd1
{[%clk 0:02:46.8]} 14... Qe7 {[%clk 0:02:50.6]} 15. Na3 {[%clk 0:02:46.9]} 15...
e5 {[%clk 0:02:49.7]} 16. Nb5 {[%clk 0:02:46.8]} 16... Rac8 {[%clk 0:02:47.9]}
17. Rac1 {[%clk 0:02:47.4]} 17... h5 {[%clk 0:02:21.7]} 18. Na7 {[%clk
0:02:47.3]} 18... Rb8 {[%clk 0:02:12.7]} 19. Nb5 {[%clk 0:02:48]} 19... c6
{[%clk 0:01:44.4]} 20. Na3 {[%clk 0:02:41.4]} 20... Bh6 {[%clk 0:01:42.6]} 21.
Bf1 {[%clk 0:02:31.9]} 21... exd4 {[%clk 0:01:09.8]} 22. Rxd4 {[%clk 0:02:22.7]}
22... Nxf2 {[%clk 0:00:45.8]} 23. Bxd6 {[%clk 0:02:22.7]} 23... Qxe3 {[%clk
0:00:33.1]} 24. Re1 {[%clk 0:02:22.6]} 24... Nxh3+ {[%clk 0:00:33.2]} 25. Kh2
{[%clk 0:02:22.7]} 25... Qf2 {[%clk 0:00:33.4]} 26. Bg3 {[%clk 0:02:08.9]} 26...
Nc5 {[%clk 0:00:20.5]} 27. Qa2 {[%clk 0:01:42.9]} 27... Rxe1 {[%clk 0:00:11.9]}
28. Bxf2 {[%clk 0:01:42.2]} 28... Rxf1 {[%clk 0:00:12.4]} 29. Bg3 {[%clk
0:01:35.2]} 29... Nf2 {[%clk 0:00:07.3]} 30. Bxb8 {[%clk 0:01:30]} 30... Rh1+
{[%clk 0:00:07.2]} 31. Kg3 {[%clk 0:01:30.3]} 31... Nfe4+ {[%clk 0:00:07.7]} 32.
Rxe4 {[%clk 0:01:26]} 32... Nxe4# {[%clk 0:00:08.6]} 0-1

[Event "*** Titled Tuesday Blitz"]
[Site "Chess.com"]
[Date "2020.12.29"]
[Round "7"]
[White "Fortitudine"]
[Black "MarcLonoff"]
[Result "0-1"]
[WhiteElo "2322"]
[BlackElo "2174"]
[TimeControl "180+1"]
[EndTime "11:15:31 PST"]
[Termination "MarcLonoff won on time"]

1. c4 {[%clk 0:03:00.9]} 1... b6 {[%clk 0:02:58.7]} 2. Nf3 {[%clk 0:02:59.4]}
2... e6 {[%clk 0:02:53]} 3. g3 {[%clk 0:02:58.7]} 3... Bb7 {[%clk 0:02:52.8]} 4.
Bg2 {[%clk 0:02:58.6]} 4... f5 {[%clk 0:02:53.3]} 5. b3 {[%clk 0:02:58.4]} 5...
Nf6 {[%clk 0:02:51.8]} 6. Bb2 {[%clk 0:02:58.5]} 6... Be7 {[%clk 0:02:48.9]} 7.
O-O {[%clk 0:02:58.1]} 7... O-O {[%clk 0:02:49.3]} 8. d3 {[%clk 0:02:56.2]} 8...
d6 {[%clk 0:02:47.4]} 9. Nbd2 {[%clk 0:02:21.8]} 9... e5 {[%clk 0:02:39.9]} 10.
e3 {[%clk 0:02:19]} 10... Na6 {[%clk 0:02:34.5]} 11. Ng5 {[%clk 0:01:32.6]}
11... Bxg2 {[%clk 0:02:32.4]} 12. Kxg2 {[%clk 0:01:33.5]} 12... Qd7 {[%clk
0:02:23.8]} 13. f4 {[%clk 0:01:25.3]} 13... Nc5 {[%clk 0:02:06.9]} 14. Qe2
{[%clk 0:00:45.3]} 14... h6 {[%clk 0:01:59.2]} 15. Ngf3 {[%clk 0:00:31.1]} 15...
Qc6 {[%clk 0:01:51.3]} 16. fxe5 {[%clk 0:00:29.3]} 16... dxe5 {[%clk 0:01:41.5]}
17. Bxe5 {[%clk 0:00:29.7]} 17... Ng4 {[%clk 0:01:41.2]} 18. Bc3 {[%clk
0:00:16.5]} 18... Bg5 {[%clk 0:01:33.9]} 19. Bd4 {[%clk 0:00:11.2]} 19... Rae8
{[%clk 0:01:30.3]} 20. h3 {[%clk 0:00:10.3]} 20... Nxe3+ {[%clk 0:01:29.2]} 21.
Bxe3 {[%clk 0:00:06.9]} 21... Rxe3 {[%clk 0:01:28.4]} 22. Qd1 {[%clk 0:00:05.9]}
22... Rfe8 {[%clk 0:01:23.2]} 23. d4 {[%clk 0:00:05.4]} 23... Nd3 {[%clk
0:01:19.3]} 24. d5 {[%clk 0:00:05.2]} 24... Qd6 {[%clk 0:01:15.8]} 0-1

[Event "*** Titled Tuesday Blitz"]
[Site "Chess.com"]
[Date "2020.12.29"]
[Round "7"]
[White "PotapovaM"]
[Black "ulkaf961"]
[Result "1-0"]
[WhiteElo "2546"]
[BlackElo "2308"]
[TimeControl "180+1"]
[EndTime "11:15:35 PST"]
[Termination "PotapovaM won on time"]

1. d4 {[%clk 0:02:59.7]} 1... d5 {[%clk 0:02:48.5]} 2. c4 {[%clk 0:03:00.2]}
2... e6 {[%clk 0:02:46.6]} 3. Nf3 {[%clk 0:03:00.8]} 3... a6 {[%clk 0:02:44.6]}
4. cxd5 {[%clk 0:03:00.4]} 4... exd5 {[%clk 0:02:44.2]} 5. Nc3 {[%clk 0:03:01]}
5... h6 {[%clk 0:02:44.1]} 6. g3 {[%clk 0:02:37.5]} 6... Nf6 {[%clk 0:02:38.3]}
7. Bg2 {[%clk 0:02:38.1]} 7... Be7 {[%clk 0:02:30.1]} 8. O-O {[%clk 0:02:38.6]}
8... O-O {[%clk 0:02:29.3]} 9. Ne5 {[%clk 0:02:39.2]} 9... c6 {[%clk 0:02:28.2]}
10. Bf4 {[%clk 0:02:29.7]} 10... Be6 {[%clk 0:02:14]} 11. Qb3 {[%clk 0:02:28.5]}
11... b5 {[%clk 0:02:05]} 12. Rac1 {[%clk 0:02:25.2]} 12... Ra7 {[%clk
0:01:41.6]} 13. a4 {[%clk 0:02:20.9]} 13... c5 {[%clk 0:01:04.6]} 14. axb5
{[%clk 0:01:54]} 14... cxd4 {[%clk 0:01:03.4]} 15. b6 {[%clk 0:01:51.8]} 15...
Rb7 {[%clk 0:01:01.8]} 16. Na4 {[%clk 0:01:51.9]} 16... Ne4 {[%clk 0:00:46.5]}
17. Nd3 {[%clk 0:01:44.1]} 17... Bd6 {[%clk 0:00:38.2]} 18. Rfd1 {[%clk
0:01:23.7]} 18... g5 {[%clk 0:00:28.5]} 19. Bd2 {[%clk 0:01:19.6]} 19... Nd7
{[%clk 0:00:26.2]} 20. Ba5 {[%clk 0:01:18.6]} 20... Qf6 {[%clk 0:00:13.5]} 21.
f3 {[%clk 0:01:13]} 21... Be7 {[%clk 0:00:02]} 22. Rc6 {[%clk 0:01:09.4]} 1-0

[Event "*** Titled Tuesday Blitz"]
[Site "Chess.com"]
[Date "2020.12.29"]
[Round "7"]
[White "elamier"]
[Black "azikom"]
[Result "1-0"]
[WhiteElo "2436"]
[BlackElo "2603"]
[TimeControl "180+1"]
[EndTime "11:15:36 PST"]
[Termination "elamier won by resignation"]

1. e4 {[%clk 0:03:00.9]} 1... Nf6 {[%clk 0:02:58.8]} 2. e5 {[%clk 0:03:00.3]}
2... Nd5 {[%clk 0:02:59.4]} 3. d4 {[%clk 0:03:00.3]} 3... d6 {[%clk 0:02:59.6]}
4. c4 {[%clk 0:03:00.4]} 4... Nb6 {[%clk 0:02:59.5]} 5. exd6 {[%clk 0:03:01]}
5... exd6 {[%clk 0:03:00.1]} 6. Nc3 {[%clk 0:02:57.2]} 6... Be7 {[%clk
0:03:00.6]} 7. Be3 {[%clk 0:02:57.2]} 7... O-O {[%clk 0:02:53]} 8. Be2 {[%clk
0:02:56.3]} 8... Bf5 {[%clk 0:02:48]} 9. Nf3 {[%clk 0:02:54.2]} 9... c6 {[%clk
0:02:46.5]} 10. O-O {[%clk 0:02:52.6]} 10... N8d7 {[%clk 0:02:46.7]} 11. Rc1
{[%clk 0:02:52]} 11... Re8 {[%clk 0:02:46.3]} 12. b3 {[%clk 0:02:51.2]} 12... h6
{[%clk 0:02:45.7]} 13. a4 {[%clk 0:02:50.6]} 13... a5 {[%clk 0:02:39.6]} 14. Re1
{[%clk 0:02:50.2]} 14... Nf8 {[%clk 0:02:34.8]} 15. d5 {[%clk 0:02:34.9]} 15...
Bg6 {[%clk 0:02:22.8]} 16. dxc6 {[%clk 0:02:29.1]} 16... bxc6 {[%clk 0:02:22.5]}
17. Nd4 {[%clk 0:02:29.5]} 17... Qd7 {[%clk 0:02:04.1]} 18. Bf3 {[%clk 0:02:12]}
18... Rac8 {[%clk 0:01:57.1]} 19. c5 {[%clk 0:01:44.5]} 19... dxc5 {[%clk
0:01:56.7]} 20. Nxc6 {[%clk 0:01:42.3]} 20... Qxd1 {[%clk 0:01:47]} 21. Rexd1
{[%clk 0:01:34.5]} 21... Bg5 {[%clk 0:01:34.1]} 22. Bxg5 {[%clk 0:01:29.9]}
22... hxg5 {[%clk 0:01:34]} 23. Nxa5 {[%clk 0:01:27.3]} 23... Ne6 {[%clk
0:01:32.7]} 24. Nb7 {[%clk 0:01:22.2]} 24... Re7 {[%clk 0:01:12.3]} 25. a5
{[%clk 0:01:19.7]} 25... Na8 {[%clk 0:01:10.2]} 26. a6 {[%clk 0:01:04.1]} 26...
Nd4 {[%clk 0:00:42.2]} 27. Nd5 {[%clk 0:00:55.8]} 27... Re5 {[%clk 0:00:40.5]}
28. Rxd4 {[%clk 0:00:53.4]} 1-0

[Event "*** Titled Tuesday Blitz"]
[Site "Chess.com"]
[Date "2020.12.29"]
[Round "7"]
[White "barbara25"]
[Black "MaxLeto"]
[Result "0-1"]
[WhiteElo "2266"]
[BlackElo "2391"]
[TimeControl "180+1"]
[EndTime "11:15:38 PST"]
[Termination "MaxLeto won by resignation"]

1. e4 {[%clk 0:02:51.2]} 1... c5 {[%clk 0:02:54.4]} 2. Nf3 {[%clk 0:02:49.5]}
2... d6 {[%clk 0:02:52.3]} 3. d4 {[%clk 0:02:48.8]} 3... cxd4 {[%clk 0:02:53.2]}
4. Nxd4 {[%clk 0:02:48.2]} 4... Nf6 {[%clk 0:02:53]} 5. Nc3 {[%clk 0:02:47.4]}
5... a6 {[%clk 0:02:52.8]} 6. f3 {[%clk 0:02:45.6]} 6... e6 {[%clk 0:02:52.7]}
7. Be3 {[%clk 0:02:44.8]} 7... b5 {[%clk 0:02:52.7]} 8. Qd2 {[%clk 0:02:44.3]}
8... Nbd7 {[%clk 0:02:52.7]} 9. O-O-O {[%clk 0:02:44.5]} 9... Bb7 {[%clk
0:02:52.8]} 10. Kb1 {[%clk 0:02:44.7]} 10... b4 {[%clk 0:02:52.3]} 11. Nce2
{[%clk 0:02:44.3]} 11... d5 {[%clk 0:02:52.4]} 12. exd5 {[%clk 0:02:42]} 12...
Nxd5 {[%clk 0:02:53.3]} 13. Nf4 {[%clk 0:02:42.3]} 13... Nxe3 {[%clk 0:02:43.2]}
14. Qxe3 {[%clk 0:02:42]} 14... Bc5 {[%clk 0:02:41]} 15. Qd2 {[%clk 0:02:36.8]}
15... Nb6 {[%clk 0:01:35.5]} 16. Ndxe6 {[%clk 0:02:03.1]} 16... Qxd2 {[%clk
0:01:25.3]} 17. Rxd2 {[%clk 0:01:59.6]} 17... fxe6 {[%clk 0:01:25]} 18. Nxe6
{[%clk 0:01:56.2]} 18... Rc8 {[%clk 0:01:17.1]} 19. Bc4 {[%clk 0:01:42.7]} 19...
Nxc4 {[%clk 0:01:15.9]} 20. Re2 {[%clk 0:01:41.6]} 20... Kf7 {[%clk 0:01:10]}
21. Rd1 {[%clk 0:01:41.2]} 21... Nb6 {[%clk 0:00:44.1]} 22. Ng5+ {[%clk
0:01:31.6]} 22... Kg6 {[%clk 0:00:42]} 23. h4 {[%clk 0:01:30.7]} 23... Rhe8
{[%clk 0:00:37.9]} 24. Red2 {[%clk 0:01:19.1]} 24... h6 {[%clk 0:00:34.5]} 25.
Ne4 {[%clk 0:01:16.4]} 25... Bxe4 {[%clk 0:00:33.9]} 26. fxe4 {[%clk 0:01:16.1]}
26... Rxe4 {[%clk 0:00:34.8]} 27. g3 {[%clk 0:01:10.9]} 27... Rc6 {[%clk
0:00:31.1]} 28. Rd3 {[%clk 0:01:02.2]} 28... Nc4 {[%clk 0:00:29.6]} 29. b3
{[%clk 0:01:01]} 29... Na3+ {[%clk 0:00:29.8]} 30. Kc1 {[%clk 0:01:00.4]} 30...
Be3+ {[%clk 0:00:28.6]} 0-1

[Event "*** Titled Tuesday Blitz"]
[Site "Chess.com"]
[Date "2020.12.29"]
[Round "7"]
[White "Sergienko_Sergey"]
[Black "bylavochka"]
[Result "1-0"]
[WhiteElo "2297"]
[BlackElo "2136"]
[TimeControl "180+1"]
[EndTime "11:15:39 PST"]
[Termination "Sergienko_Sergey won on time"]

1. e4 {[%clk 0:02:58.6]} 1... c5 {[%clk 0:02:59]} 2. Nf3 {[%clk 0:02:58.1]} 2...
d6 {[%clk 0:02:58.9]} 3. d4 {[%clk 0:02:56.7]} 3... cxd4 {[%clk 0:02:59.8]} 4.
Nxd4 {[%clk 0:02:56.7]} 4... Nf6 {[%clk 0:02:59.7]} 5. Nc3 {[%clk 0:02:56.7]}
5... g6 {[%clk 0:02:59.5]} 6. f4 {[%clk 0:02:56.3]} 6... Bg7 {[%clk 0:01:55.9]}
7. e5 {[%clk 0:02:54.8]} 7... Nfd7 {[%clk 0:01:06.5]} 8. e6 {[%clk 0:02:50.2]}
8... Nf6 {[%clk 0:01:05.6]} 9. exf7+ {[%clk 0:02:48.6]} 9... Kxf7 {[%clk
0:01:05.8]} 10. Be2 {[%clk 0:02:45.3]} 10... Nc6 {[%clk 0:01:04.1]} 11. Be3
{[%clk 0:02:40.2]} 11... Rf8 {[%clk 0:00:57]} 12. O-O {[%clk 0:02:37.4]} 12...
Kg8 {[%clk 0:00:56.4]} 13. Kh1 {[%clk 0:02:30.7]} 13... e5 {[%clk 0:00:47.9]}
14. Nxc6 {[%clk 0:02:24.2]} 14... bxc6 {[%clk 0:00:44.7]} 15. fxe5 {[%clk
0:02:24.1]} 15... dxe5 {[%clk 0:00:44.3]} 16. Bc4+ {[%clk 0:02:23.7]} 16... Kh8
{[%clk 0:00:43.7]} 17. Qxd8 {[%clk 0:02:19.3]} 17... Rxd8 {[%clk 0:00:44.6]} 18.
Bg5 {[%clk 0:02:18.3]} 18... Bf5 {[%clk 0:00:38.6]} 19. g4 {[%clk 0:02:14.1]}
19... Nxg4 {[%clk 0:00:18.7]} 20. Rae1 {[%clk 0:02:07.9]} 20... Rd4 {[%clk
0:00:11.7]} 21. Bb3 {[%clk 0:02:06.6]} 21... h6 {[%clk 0:00:11.2]} 22. Bc1
{[%clk 0:02:00.5]} 22... e4 {[%clk 0:00:09.4]} 23. Ne2 {[%clk 0:01:57.9]} 23...
Rd7 {[%clk 0:00:08.1]} 24. Ng3 {[%clk 0:01:57.6]} 24... Rf8 {[%clk 0:00:06.2]}
25. Nxf5 {[%clk 0:01:55.3]} 25... gxf5 {[%clk 0:00:06]} 26. Be6 {[%clk
0:01:54.1]} 26... Re7 {[%clk 0:00:04.4]} 27. Bxf5 {[%clk 0:01:53.2]} 27... Ref7
{[%clk 0:00:04.5]} 28. Rf4 {[%clk 0:01:42.7]} 28... Rxf5 {[%clk 0:00:03.4]} 29.
Rxg4 {[%clk 0:01:42.6]} 29... Rf1+ {[%clk 0:00:03.9]} 30. Rg1 {[%clk 0:01:42.5]}
30... Rxe1 {[%clk 0:00:03.1]} 31. Rxe1 {[%clk 0:01:41.8]} 31... Re8 {[%clk
0:00:04]} 32. Kg2 {[%clk 0:01:41.3]} 32... Kh7 {[%clk 0:00:04.1]} 33. c3 {[%clk
0:01:40.6]} 33... Kg6 {[%clk 0:00:04.4]} 34. Be3 {[%clk 0:01:40.5]} 34... Kf5
{[%clk 0:00:04.5]} 35. Rd1 {[%clk 0:01:40.3]} 35... Re6 {[%clk 0:00:03.3]} 36.
Rd7 {[%clk 0:01:37.3]} 36... a6 {[%clk 0:00:02.7]} 37. Rxg7 {[%clk 0:01:36.3]}
1-0

[Event "*** Titled Tuesday Blitz"]
[Site "Chess.com"]
[Date "2020.12.29"]
[Round "7"]
[White "Lagmantr"]
[Black "wonderfultime"]
[Result "0-1"]
[WhiteElo "2783"]
[BlackElo "3011"]
[TimeControl "180+1"]
[EndTime "11:15:40 PST"]
[Termination "wonderfultime won by checkmate"]

1. e4 {[%clk 0:03:00.9]} 1... c5 {[%clk 0:02:59.5]} 2. Nf3 {[%clk 0:03:01.3]}
2... Nf6 {[%clk 0:03:00.1]} 3. e5 {[%clk 0:02:59.6]} 3... Nd5 {[%clk 0:03:00.6]}
4. Nc3 {[%clk 0:02:58.7]} 4... e6 {[%clk 0:03:01.1]} 5. Nxd5 {[%clk 0:02:58.5]}
5... exd5 {[%clk 0:03:02]} 6. d4 {[%clk 0:02:58.9]} 6... Nc6 {[%clk 0:03:02.6]}
7. c3 {[%clk 0:02:58.8]} 7... d6 {[%clk 0:03:02.2]} 8. Bb5 {[%clk 0:02:56.1]}
8... cxd4 {[%clk 0:03:02.2]} 9. Nxd4 {[%clk 0:02:53.3]} 9... Bd7 {[%clk
0:03:02.5]} 10. exd6 {[%clk 0:02:47.2]} 10... Bxd6 {[%clk 0:03:03.4]} 11. Qe2+
{[%clk 0:02:47.3]} 11... Be7 {[%clk 0:03:03.7]} 12. Bg5 {[%clk 0:02:38.4]} 12...
Nxd4 {[%clk 0:02:53.7]} 13. cxd4 {[%clk 0:02:29.4]} 13... Qa5+ {[%clk
0:02:26.4]} 14. Kd1 {[%clk 0:02:15.4]} 14... O-O {[%clk 0:02:26.5]} 15. Bxe7
{[%clk 0:01:56.1]} 15... Bxb5 {[%clk 0:02:24.5]} 16. Qd2 {[%clk 0:01:56.6]}
16... Ba4+ {[%clk 0:02:23.3]} 17. b3 {[%clk 0:00:53.5]} 17... Bxb3+ {[%clk
0:02:22.1]} 18. Ke1 {[%clk 0:00:54.1]} 18... Qa6 {[%clk 0:01:48.1]} 19. Rb1
{[%clk 0:00:21.3]} 19... Ba4 {[%clk 0:01:24]} 20. Qb4 {[%clk 0:00:11.7]} 20...
Rfc8 {[%clk 0:01:15.6]} 21. Kd2 {[%clk 0:00:01.9]} 21... Rc2+ {[%clk 0:01:15.2]}
22. Ke3 {[%clk 0:00:02.5]} 22... Qe2+ {[%clk 0:01:09.9]} 23. Kf4 {[%clk
0:00:03.4]} 23... Qxf2+ {[%clk 0:01:10.2]} 24. Ke5 {[%clk 0:00:03.8]} 24... Qe3+
{[%clk 0:01:05.5]} 25. Kd6 {[%clk 0:00:04.2]} 25... Qe6# {[%clk 0:01:05.1]} 0-1

[Event "*** Titled Tuesday Blitz"]
[Site "Chess.com"]
[Date "2020.12.29"]
[Round "7"]
[White "ljuks68"]
[Black "NaciSAN"]
[Result "1-0"]
[WhiteElo "2384"]
[BlackElo "2172"]
[TimeControl "180+1"]
[EndTime "11:15:44 PST"]
[Termination "ljuks68 won by resignation"]

1. e4 {[%clk 0:03:00.9]} 1... e5 {[%clk 0:02:59.8]} 2. Nf3 {[%clk 0:03:00.8]}
2... Nc6 {[%clk 0:03:00.1]} 3. Bb5 {[%clk 0:02:59.3]} 3... a6 {[%clk 0:03:00.3]}
4. Ba4 {[%clk 0:02:58.2]} 4... Nf6 {[%clk 0:03:00.9]} 5. Qe2 {[%clk 0:02:57.3]}
5... b5 {[%clk 0:02:59.3]} 6. Bb3 {[%clk 0:02:57.3]} 6... Be7 {[%clk 0:02:58.9]}
7. c3 {[%clk 0:02:57.5]} 7... O-O {[%clk 0:02:57.4]} 8. d4 {[%clk 0:02:57.8]}
8... d6 {[%clk 0:02:54.2]} 9. O-O {[%clk 0:02:56.8]} 9... Bg4 {[%clk 0:02:50.4]}
10. Rd1 {[%clk 0:02:56.3]} 10... exd4 {[%clk 0:02:22.4]} 11. cxd4 {[%clk
0:02:54]} 11... Re8 {[%clk 0:02:15.6]} 12. Nc3 {[%clk 0:02:50.8]} 12... Bf8
{[%clk 0:02:14.9]} 13. e5 {[%clk 0:02:41.7]} 13... h6 {[%clk 0:02:00.3]} 14. Be3
{[%clk 0:02:35.6]} 14... Nh7 {[%clk 0:01:30.8]} 15. Rac1 {[%clk 0:02:20.7]}
15... Na5 {[%clk 0:01:25]} 16. Bc2 {[%clk 0:02:19.9]} 16... Nc4 {[%clk
0:01:25.1]} 17. b3 {[%clk 0:02:14.8]} 17... Nxe3 {[%clk 0:01:24.4]} 18. Qxe3
{[%clk 0:02:14.7]} 18... Ng5 {[%clk 0:01:23]} 19. Nxg5 {[%clk 0:02:07.6]} 19...
hxg5 {[%clk 0:01:06.4]} 20. f3 {[%clk 0:02:03.4]} 20... Bd7 {[%clk 0:01:03.2]}
21. f4 {[%clk 0:01:46.3]} 21... gxf4 {[%clk 0:01:02.4]} 22. Qxf4 {[%clk
0:01:46.2]} 22... Bc6 {[%clk 0:00:50]} 23. Ne4 {[%clk 0:01:33.8]} 23... Bxe4
{[%clk 0:00:49.6]} 24. Bxe4 {[%clk 0:01:33.3]} 24... Rb8 {[%clk 0:00:47]} 25.
Rf1 {[%clk 0:00:57.8]} 25... f6 {[%clk 0:00:21.3]} 26. Bd5+ {[%clk 0:00:53.9]}
1-0

[Event "*** Titled Tuesday Blitz"]
[Site "Chess.com"]
[Date "2020.12.29"]
[Round "7"]
[White "AryanTari"]
[Black "Keranke"]
[Result "1-0"]
[WhiteElo "2903"]
[BlackElo "2836"]
[TimeControl "180+1"]
[EndTime "11:15:45 PST"]
[Termination "AryanTari won by resignation"]

1. e4 {[%clk 0:03:00.9]} 1... g6 {[%clk 0:02:59.8]} 2. d4 {[%clk 0:03:00.4]}
2... Bg7 {[%clk 0:03:00.2]} 3. Nf3 {[%clk 0:03:00.7]} 3... d6 {[%clk 0:03:00.7]}
4. c3 {[%clk 0:02:57.3]} 4... Nf6 {[%clk 0:02:58.4]} 5. Bd3 {[%clk 0:02:57.7]}
5... O-O {[%clk 0:02:58.9]} 6. O-O {[%clk 0:02:55.6]} 6... c5 {[%clk 0:02:56.3]}
7. h3 {[%clk 0:02:53.2]} 7... cxd4 {[%clk 0:02:50.5]} 8. cxd4 {[%clk 0:02:53.2]}
8... Nc6 {[%clk 0:02:51.1]} 9. Nc3 {[%clk 0:02:50.6]} 9... a6 {[%clk 0:02:48]}
10. Be3 {[%clk 0:02:48.7]} 10... b5 {[%clk 0:02:46.7]} 11. d5 {[%clk 0:02:44.6]}
11... Na5 {[%clk 0:02:43.7]} 12. b3 {[%clk 0:02:35.3]} 12... Nd7 {[%clk
0:02:38.6]} 13. Rc1 {[%clk 0:02:29.7]} 13... Bb7 {[%clk 0:02:35.8]} 14. Qd2
{[%clk 0:02:27.3]} 14... Rc8 {[%clk 0:02:34.3]} 15. Ne2 {[%clk 0:02:18.4]} 15...
Nc5 {[%clk 0:02:17.1]} 16. Bb1 {[%clk 0:02:01.4]} 16... e6 {[%clk 0:01:54.9]}
17. b4 {[%clk 0:01:37.4]} 17... Nc4 {[%clk 0:01:54.2]} 18. Rxc4 {[%clk
0:01:37.4]} 18... bxc4 {[%clk 0:01:54.7]} 19. bxc5 {[%clk 0:01:37.8]} 19... exd5
{[%clk 0:01:54.7]} 20. exd5 {[%clk 0:01:37]} 20... dxc5 {[%clk 0:01:53.6]} 21.
Rd1 {[%clk 0:01:36.6]} 21... Qb6 {[%clk 0:01:47.3]} 22. Nc3 {[%clk 0:01:36]}
22... Rfd8 {[%clk 0:01:45.7]} 23. Bh6 {[%clk 0:01:28]} 23... Bh8 {[%clk
0:01:39.2]} 24. Be4 {[%clk 0:01:19.2]} 24... Qb4 {[%clk 0:01:37]} 25. Rb1 {[%clk
0:01:13]} 25... Bxc3 {[%clk 0:01:34.4]} 26. Qf4 {[%clk 0:01:04.5]} 26... Bxd5
{[%clk 0:01:09.2]} 27. Rxb4 {[%clk 0:01:04.4]} 27... cxb4 {[%clk 0:01:10.1]} 28.
Ne5 {[%clk 0:01:04.7]} 28... f5 {[%clk 0:01:00.5]} 29. Bxf5 {[%clk 0:00:38.4]}
29... Rf8 {[%clk 0:00:45.5]} 30. g4 {[%clk 0:00:38.6]} 30... gxf5 {[%clk
0:00:36.1]} 31. Qg5+ {[%clk 0:00:37.9]} 1-0

[Event "*** Titled Tuesday Blitz"]
[Site "Chess.com"]
[Date "2020.12.29"]
[Round "7"]
[White "Sueetin"]
[Black "Homino"]
[Result "1-0"]
[WhiteElo "2494"]
[BlackElo "2297"]
[TimeControl "180+1"]
[EndTime "11:15:45 PST"]
[Termination "Sueetin won by resignation"]

1. d4 {[%clk 0:03:00.9]} 1... Nf6 {[%clk 0:02:57.7]} 2. c4 {[%clk 0:03:01.4]}
2... c5 {[%clk 0:02:57.6]} 3. d5 {[%clk 0:03:01.4]} 3... b5 {[%clk 0:02:56.8]}
4. Qc2 {[%clk 0:03:01.9]} 4... d6 {[%clk 0:02:56.1]} 5. e4 {[%clk 0:03:02.3]}
5... g6 {[%clk 0:02:53.9]} 6. cxb5 {[%clk 0:03:02.8]} 6... a6 {[%clk 0:02:52.8]}
7. a4 {[%clk 0:03:03.2]} 7... Bg7 {[%clk 0:02:52.6]} 8. Nc3 {[%clk 0:03:03.6]}
8... O-O {[%clk 0:02:49.3]} 9. Nf3 {[%clk 0:03:04.1]} 9... axb5 {[%clk
0:02:48.3]} 10. Bxb5 {[%clk 0:03:04]} 10... Ba6 {[%clk 0:02:47.6]} 11. O-O
{[%clk 0:03:02]} 11... Bxb5 {[%clk 0:02:46.8]} 12. Nxb5 {[%clk 0:03:01.6]} 12...
Na6 {[%clk 0:02:45.9]} 13. Bd2 {[%clk 0:02:59.3]} 13... Qb8 {[%clk 0:02:36.6]}
14. Rad1 {[%clk 0:02:57.1]} 14... Rc8 {[%clk 0:02:31.8]} 15. Bc3 {[%clk
0:02:48.7]} 15... Nc7 {[%clk 0:02:28.6]} 16. e5 {[%clk 0:02:41]} 16... Nfxd5
{[%clk 0:01:50.3]} 17. exd6 {[%clk 0:02:40.9]} 17... Nxb5 {[%clk 0:01:46.7]} 18.
Bxg7 {[%clk 0:01:31.3]} 18... Nb4 {[%clk 0:01:45.5]} 19. Qe2 {[%clk 0:01:18.9]}
19... Kxg7 {[%clk 0:01:31.3]} 20. d7 {[%clk 0:01:12.9]} 20... Rd8 {[%clk
0:01:27.2]} 21. axb5 {[%clk 0:01:12.6]} 21... Ra7 {[%clk 0:01:20.6]} 22. Qxe7
{[%clk 0:01:06.6]} 22... Qc7 {[%clk 0:01:12]} 23. Ne5 {[%clk 0:01:02.8]} 23...
Rf8 {[%clk 0:00:58.2]} 24. b6 {[%clk 0:00:37]} 24... Qxb6 {[%clk 0:00:55.2]} 25.
d8=Q {[%clk 0:00:37.1]} 25... Rxd8 {[%clk 0:00:33.1]} 26. Qxd8 {[%clk
0:00:37.1]} 1-0

[Event "*** Titled Tuesday Blitz"]
[Site "Chess.com"]
[Date "2020.12.29"]
[Round "7"]
[White "Eloist"]
[Black "MumLookatMeNow"]
[Result "0-1"]
[WhiteElo "2354"]
[BlackElo "2522"]
[TimeControl "180+1"]
[EndTime "11:15:47 PST"]
[Termination "MumLookatMeNow won by resignation"]

1. e4 {[%clk 0:03:00.9]} 1... d5 {[%clk 0:02:58.7]} 2. exd5 {[%clk 0:03:00.5]}
2... Qxd5 {[%clk 0:02:59.6]} 3. Nc3 {[%clk 0:03:00.9]} 3... Qd8 {[%clk
0:02:59.9]} 4. d4 {[%clk 0:03:01.3]} 4... Nf6 {[%clk 0:03:00.3]} 5. Nf3 {[%clk
0:03:01.7]} 5... Bg4 {[%clk 0:02:59.8]} 6. h3 {[%clk 0:03:00.4]} 6... Bxf3
{[%clk 0:03:00.2]} 7. Qxf3 {[%clk 0:02:59.5]} 7... c6 {[%clk 0:03:01.1]} 8. Be3
{[%clk 0:02:52.6]} 8... e6 {[%clk 0:03:01]} 9. O-O-O {[%clk 0:02:50.5]} 9... Bb4
{[%clk 0:03:01.3]} 10. Ne4 {[%clk 0:02:50.1]} 10... Nxe4 {[%clk 0:03:01.7]} 11.
Qxe4 {[%clk 0:02:51]} 11... Qd5 {[%clk 0:03:02]} 12. Bd3 {[%clk 0:02:39.4]}
12... Qxa2 {[%clk 0:02:58.6]} 13. c3 {[%clk 0:02:36.8]} 13... Be7 {[%clk
0:02:55.5]} 14. g4 {[%clk 0:02:01.7]} 14... a5 {[%clk 0:02:45.9]} 15. f4 {[%clk
0:01:46.1]} 15... a4 {[%clk 0:02:44.1]} 16. Bb1 {[%clk 0:01:34.5]} 16... Qa1
{[%clk 0:02:34.3]} 17. f5 {[%clk 0:01:14.1]} 17... a3 {[%clk 0:02:31.9]} 18. Rh2
{[%clk 0:01:00.9]} 18... a2 {[%clk 0:02:18.3]} 19. Kd2 {[%clk 0:00:59.5]} 19...
Qxb2+ {[%clk 0:02:12]} 20. Bc2 {[%clk 0:00:59.5]} 20... a1=Q {[%clk 0:02:09.8]}
21. Rxa1 {[%clk 0:00:59.2]} 21... Rxa1 {[%clk 0:02:10.7]} 22. fxe6 {[%clk
0:00:58.5]} 22... fxe6 {[%clk 0:01:16.1]} 23. Qxe6 {[%clk 0:00:51.1]} 23... Nd7
{[%clk 0:01:15.8]} 24. Rf2 {[%clk 0:00:17.2]} 24... Ra3 {[%clk 0:00:57.9]} 25.
Rf7 {[%clk 0:00:13.3]} 25... Qxc3+ {[%clk 0:00:56.3]} 26. Ke2 {[%clk 0:00:12.5]}
26... Qxe3+ {[%clk 0:00:56.7]} 27. Qxe3 {[%clk 0:00:11.7]} 27... Rxe3+ {[%clk
0:00:57.6]} 28. Kxe3 {[%clk 0:00:11]} 28... Kxf7 {[%clk 0:00:58.5]} 0-1